bitfinex/quotes_SOLUSD_20260105
["timestamp","ask_amount","ask_price","bid_price","bid_amount"]
[1767581298315,2.63538129,136.68,136.64,0.65792453]
[1767581298515,2.73538129,136.69,136.64,1.97607127]
[1767581299233,2.73538129,136.69,136.63,9.2947238]
[1767581299447,2.63538129,136.68,136.63,7.31865253]
[1767581300335,0.65931002,136.68,136.63,9.2947238]
[1767581300515,0.65931002,136.68,136.64,7.97632264]
[1767581301739,0.65931002,136.68,136.64,9.95239391]
[1767581302537,0.65931002,136.68,136.64,7.97632264]
[1767581303743,0.65931002,136.66,136.63,7.31867968]
[1767581303950,3.74086683,136.68,136.64,7.97640216]
[1767581305141,3.84086683,136.69,136.65,0.65792453]
[1767581305343,0.75931002,136.69,136.65,0.65792453]
[1767581305643,0.75931002,136.69,136.65,11.05723771]
[1767581306644,0.75931002,136.69,136.65,7.9756809]
[1767581307143,0.75931002,136.69,136.65,0.65792453]
[1767581308846,0.75931002,136.69,136.65,7.97570888]
[1767581309145,3.84086683,136.69,136.65,7.97570888]
[1767581309347,0.65931002,136.68,136.65,0.65792453]
[1767581309645,3.74086683,136.68,136.64,7.97624708]
[1767581310234,3.74086683,136.68,136.65,0.65792453]
[1767581311645,0.65931002,136.68,136.65,0.65792453]
[1767581311954,3.8473734,136.69,136.65,7.97583544]
[1767581312651,0.66581659,136.68,136.65,0.65792453]
[1767581314135,3.8473734,136.69,136.65,7.97569662]
[1767581317957,3.8473734,136.69,136.66,0.6977516]
[1767581318258,0.76581659,136.69,136.66,0.6977516]
[1767581318460,3.8473734,136.69,136.66,0.6977516]
[1767581320533,0.76581659,136.69,136.66,0.6977516]
[1767581320859,0.76581659,136.69,136.65,8.01552369]
[1767581321358,0.69652923,136.68,136.65,0.6977516]
[1767581321652,0.69652923,136.68,136.64,8.01607148]
[1767581321854,0.69652923,136.68,136.64,11.09762829]
[1767581322047,0.69652923,136.68,136.64,0.6977516]
[1767581325737,0.79652923,136.69,136.65,0.6977516]
[1767581326338,0.79652923,136.69,136.66,0.6977516]
[1767581328256,0.1,136.71,136.69,0.6977516]
[1767581328557,0.1,136.71,136.69,3.77930841]
[1767581328738,0.1,136.71,136.69,8.01344417]
[1767581329390,0.69652923,136.7,136.67,0.6977516]
[1767581329944,0.79652923,136.71,136.67,0.6977516]
[1767581330263,0.79652923,136.71,136.67,8.01461478]
[1767581330561,0.1,136.71,136.69,0.6977516]
[1767581330765,0.1,136.71,136.69,3.77930841]
[1767581331651,0.1,136.71,136.7,0.6977516]
[1767581333468,0.1,136.71,136.69,8.01355059]
[1767581333960,0.1,136.71,136.69,7.31579899]
[1767581334645,0.1,136.71,136.69,8.01355059]
[1767581335346,0.1,136.71,136.7,0.6977516]
[1767581335539,0.1,136.71,136.69,11.0951074]
[1767581336238,0.1,136.71,136.69,8.01355059]
[1767581336450,0.1,136.71,136.69,11.0951074]
[1767581337561,1e-08,136.71,136.69,11.0951074]
[1767581338574,1e-08,136.71,136.7,0.6977516]
[1767581339148,1e-08,136.71,136.65,37.321416]
[1767581339149,0.69652923,136.7,136.65,0.6977516]
[1767581339346,3.08155681,136.69,136.65,0.6977516]
[1767581339959,3.08155681,136.68,136.65,0.6977516]
[1767581340187,3.08155681,136.69,136.65,0.6977516]
[1767581340366,3.08155681,136.69,136.65,8.01571713]
[1767581341591,3.18055681,136.69,136.65,0.6977516]
[1767581341754,0.10474201,136.67,136.63,0.70336644]
[1767581342681,0.10474201,136.67,136.63,8.02239092]
[1767581344464,0.10474201,136.67,136.64,0.70336644]
[1767581347756,3.18629882,136.67,136.64,0.70336644]
[1767581350482,3.18629882,136.67,136.63,8.02239092]
[1767581350686,0.66751721,136.66,136.63,8.02239092]
[1767581351389,3.08155681,136.67,136.64,0.70336644]
[1767581352992,24.41694873,136.68,136.64,0.70336644]
[1767581353368,3.08155681,136.67,136.64,0.70336644]
[1767581355494,0.10474201,136.64,136.61,0.70336644]
[1767581355790,3.18629882,136.64,136.61,0.70336644]
[1767581356567,0.10474201,136.64,136.61,0.70336644]
[1767581357691,3.18629882,136.64,136.61,0.70336644]
[1767581359291,0.10474201,136.64,136.61,0.70336644]
[1767581359488,3.08155681,136.65,136.61,0.70336644]
[1767581359696,3.76055863,136.66,136.62,0.70336644]
[1767581360088,11.07830447,136.66,136.62,0.70336644]
[1767581360388,3.08155681,136.65,136.62,0.70336644]
[1767581361785,3.18055681,136.65,136.62,0.70336644]
[1767581361988,0.099,136.65,136.62,0.70336644]
[1767581362489,2.07230793,136.65,136.62,0.70336644]
[1767581363074,0.099,136.65,136.62,0.70336644]
[1767581365296,2.07230793,136.65,136.62,0.70336644]
[1767581365494,0.10474201,136.63,136.59,8.02446009]
[1767581366189,2.07230793,136.64,136.6,0.70336644]
[1767581366382,2.07230793,136.64,136.61,0.70336644]
[1767581368189,0.099,136.64,136.61,0.70336644]
[1767581369095,23.31028696,136.65,136.61,0.70336644]
[1767581369902,1.97330793,136.64,136.61,0.70336644]
[1767581372098,2.07230793,136.64,136.61,0.70336644]
[1767581372402,9.39088048,136.64,136.61,0.70336644]
[1767581373603,9.39088048,136.64,136.59,0.65932529]
[1767581373604,1.97330793,136.62,136.59,0.65932529]
[1767581373778,0.10474201,136.62,136.59,0.65932529]
[1767581373979,2.64999804,136.64,136.6,0.65932529]
[1767581374178,0.10128859,136.63,136.6,0.65932529]
[1767581376495,9.97084511,136.64,136.6,0.65932529]
[1767581377491,0.67900182,136.64,136.61,0.67098394]
[1767581377803,0.099,136.65,136.61,0.67098394]
[1767581378004,7.41713112,136.65,136.61,0.67098394]
[1767581378189,0.6732018,136.64,136.61,0.67098394]
[1767581378586,9.97044087,136.65,136.61,0.67098394]
[1767581379289,0.099,136.64,136.61,0.67098394]
[1767581379489,0.6732018,136.63,136.59,0.67098394]
[1767581380111,0.6732018,136.63,136.59,7.99209535]
[1767581380812,0.6732018,136.63,136.6,0.67098394]
[1767581381288,2.64650973,136.63,136.6,0.67098394]
[1767581381889,1.97330793,136.63,136.6,0.67098394]
[1767581382893,1.929898,136.63,136.6,0.67098394]
[1767581383094,1.97330793,136.63,136.6,0.67098394]
[1767581384111,9.97089,136.64,136.6,0.67098394]
[1767581384506,1.97330793,136.63,136.6,0.67098394]
[1767581385017,9.29235564,136.63,136.6,0.67098394]
[1767581385324,1.97330793,136.63,136.6,0.67098394]
[1767581387801,9.97098799,136.64,136.6,0.67098394]
[1767581388621,9.97098799,136.64,136.57,0.67098394]
[1767581388622,0.10474201,136.61,136.57,0.67098394]
[1767581388923,1.97330793,136.6,136.57,0.67098394]
[1767581389115,2.07230793,136.61,136.58,0.67098394]
[1767581389304,1.97330793,136.61,136.57,0.67098394]
[1767581389633,2.07230793,136.61,136.57,0.67098394]
[1767581389822,0.6732018,136.6,136.57,0.67098394]
[1767581390020,0.6732018,136.6,136.56,7.99365444]
[1767581390217,0.6732018,136.6,136.55,9.96741844]
[1767581390417,2.07804994,136.59,136.55,7.99411051]
[1767581390616,2.04804995,136.59,136.55,7.99411051]
[1767581390925,1.97330793,136.59,136.55,7.32312657]
[1767581391224,7.32063706,136.61,136.55,7.32312657]
[1767581391438,1.97330793,136.6,136.56,0.67098394]
[1767581392624,2.62230976,136.6,136.56,0.67098394]
[1767581392830,1.97330793,136.59,136.56,0.67098394]
[1767581394833,1.97330793,136.6,136.57,0.67098394]
[1767581395010,0.64350181,136.59,136.56,7.32242625]
[1767581395907,0.64900183,136.6,136.57,7.99319074]
[1767581396425,2.62230976,136.6,136.57,0.67098394]
[1767581396630,2.62230976,136.6,136.56,0.67098394]
[1767581396831,2.62230976,136.6,136.56,7.9937451]
[1767581398913,0.64900183,136.6,136.56,7.9937451]
[1767581399432,0.64900183,136.6,136.57,0.67098394]
[1767581399827,0.64900183,136.6,136.56,7.32276116]
[1767581401033,0.64350181,136.58,136.55,0.67098394]
[1767581401340,21.30872399,136.62,136.58,0.68650118]
[1767581401528,13.34,136.62,136.58,0.68650118]
[1767581401826,0.64900183,136.66,136.61,0.68650118]
[1767581402047,0.64350181,136.64,136.59,0.68650118]
[1767581402208,1.97330793,136.65,136.6,8.00712626]
[1767581402409,2.62230976,136.65,136.61,0.68650118]
[1767581402842,2.62230976,136.67,136.62,0.68650118]
[1767581403021,0.64900183,136.67,136.63,0.68650118]
[1767581403638,0.64900183,136.67,136.64,0.68650118]
[1767581403841,13.98900183,136.68,136.64,0.68650118]
[1767581404025,13.98900183,136.68,136.64,8.00494533]
[1767581404839,13.98900183,136.68,136.65,0.68650118]
[1767581405039,0.64900183,136.7,136.66,0.68650118]
[1767581405243,0.10444501,136.67,136.63,8.0054466]
[1767581405721,0.10444501,136.67,136.64,0.68650118]
[1767581405923,0.10444501,136.67,136.64,8.00499082]
[1767581406115,2.62230976,136.68,136.64,8.00499082]
[1767581406319,2.62230976,136.69,136.65,0.68650118]
[1767581406738,0.099,136.68,136.65,0.68650118]
[1767581407113,2.07230793,136.68,136.65,0.68650118]
[1767581407331,2.62230976,136.7,136.65,0.68650118]
[1767581407527,2.07230793,136.69,136.65,0.68650118]
[1767581407943,0.64350181,136.68,136.64,7.31848964]
[1767581408242,0.10444501,136.67,136.63,8.00543726]
[1767581408426,2.61141918,136.66,136.62,0.68650118]
[1767581408624,0.64900183,136.68,136.64,0.68650118]
[1767581408819,2.07230793,136.67,136.63,0.68650118]
[1767581409143,2.61680974,136.66,136.61,8.00610022]
[1767581409438,2.61680974,136.66,136.62,0.68650118]
[1767581409644,13.34,136.67,136.64,0.68650118]
[1767581409818,13.98350181,136.67,136.64,0.68650118]
[1767581410016,0.10444501,136.66,136.63,7.31889146]
[1767581410828,13.98900183,136.67,136.63,8.00539264]
[1767581411037,13.34,136.67,136.64,0.68650118]
[1767581411416,2.07230793,136.69,136.64,0.68650118]
[1767581412130,2.07230793,136.69,136.65,0.68650118]
[1767581412443,15.31330793,136.7,136.65,0.68650118]
[1767581412626,15.41230793,136.7,136.65,0.68650118]
[1767581413836,13.439,136.7,136.65,0.68650118]
[1767581414038,15.41230793,136.7,136.65,0.68650118]
[1767581414821,15.41230793,136.7,136.64,9.29130233]
[1767581414822,2.07775294,136.68,136.64,8.00498537]
[1767581415535,0.63811125,136.67,136.64,7.31848419]
[1767581415912,0.63811125,136.67,136.63,9.29234474]
[1767581417343,2.61141918,136.67,136.63,0.68650118]
[1767581417637,2.60613588,136.65,136.6,21.34705861]
[1767581417823,2.60613588,136.65,136.61,8.00653166]
[1767581419838,2.60613588,136.65,136.59,2.65980911]
[1767581419839,0.11501214,136.64,136.59,2.65980911]
[1767581420041,0.62764979,136.63,136.58,20.96338063]
[1767581420538,0.12516287,136.6,136.56,8.00878007]
[1767581421524,1.97330793,136.61,136.56,8.00878007]
[1767581421525,1.97330793,136.61,136.57,0.68650118]
[1767581421720,2.07230793,136.61,136.57,0.68650118]
[1767581422128,15.96230976,136.62,136.58,0.68650118]
[1767581422531,1.97330793,136.61,136.58,0.68650118]
[1767581422738,2.07230793,136.61,136.57,8.00869744]
[1767581424545,3.18433709,136.61,136.57,8.00869744]
[1767581424746,3.1897821,136.59,136.55,0.68650118]
[1767581425544,3.1897821,136.59,136.56,0.68650118]
[1767581425740,0.63811125,136.58,136.55,7.32326479]
[1767581427532,3.08533709,136.59,136.56,0.68650118]
[1767581428848,3.18433709,136.61,136.57,0.68650118]
[1767581429753,3.08533709,136.62,136.58,0.68650118]
[1767581429957,13.98900183,136.63,136.58,0.68650118]
[1767581430150,0.099,136.62,136.58,0.68650118]
[1767581430963,3.73433892,136.64,136.59,3.78118657]
[1767581431160,3.08533709,136.64,136.6,0.69584948]
[1767581431864,3.18433709,136.65,136.6,0.69584948]
[1767581432158,3.18433709,136.65,136.6,7.32032747]
[1767581432332,3.18433709,136.65,136.61,0.69584948]
[1767581433646,3.73433892,136.66,136.61,0.69584948]
[1767581433833,3.73433892,136.66,136.62,8.01542201]
[1767581434158,0.64900183,136.66,136.62,8.01542201]
[1767581434332,3.73433892,136.66,136.62,8.01542201]
[1767581434859,0.64900183,136.66,136.62,8.01542201]
[1767581435156,3.73433892,136.66,136.62,8.01542201]
[1767581435949,3.08533709,136.65,136.62,8.01542201]
[1767581437359,16.42533709,136.67,136.63,0.66918047]
[1767581438949,3.73433892,136.68,136.64,0.66918047]
[1767581439156,3.08533709,136.68,136.64,0.66918047]
[1767581439751,13.98900183,136.69,136.64,0.66918047]
[1767581439950,17.07433892,136.69,136.64,0.66918047]
[1767581440149,0.099,136.68,136.63,10.40436589]
[1767581440450,0.099,136.68,136.64,3.08533709]
[1767581440846,23.7413488,136.69,136.64,0.66918047]
[1767581441057,0.64350181,136.68,136.64,0.66918047]
[1767581441241,0.10444501,136.67,136.64,0.66918047]
[1767581443667,11.05072343,136.68,136.64,0.66918047]
[1767581450264,0.099,136.67,136.63,10.40436589]
[1767581450463,11.05072343,136.68,136.64,0.66918047]
[1767581452661,3.73433892,136.68,136.64,0.66918047]
[1767581452868,0.64900183,136.69,136.65,0.66918047]
[1767581453053,13.34,136.68,136.65,0.66918047]
[1767581454787,1e-08,136.71,136.66,0.66918047]
[1767581455082,3.08533709,136.68,136.63,0.66918047]
[1767581455251,3.08533709,136.67,136.63,0.66918047]
[1767581455960,0.64350181,136.66,136.63,7.31895585]
[1767581457978,24.39072231,136.68,136.64,0.66918047]
[1767581459481,0.64350181,136.66,136.62,7.9885732]
[1767581459674,3.08533709,136.66,136.63,0.66918047]
[1767581460275,3.08533709,136.66,136.61,7.9892888]
[1767581461355,10.40224575,136.67,136.61,11.07462589]
[1767581462081,10.40224575,136.67,136.61,7.9892888]
[1767581462282,10.40224575,136.67,136.61,11.07462589]
[1767581463183,3.08533709,136.67,136.61,11.07462589]
[1767581463386,3.08533709,136.67,136.62,0.72209351]
[1767581463883,3.08533709,136.66,136.62,0.72209351]
[1767581464284,3.08533709,136.63,136.58,8.04379212]
[1767581464513,7.31856338,136.64,136.59,0.72209351]
[1767581464514,20.65856338,136.64,136.59,0.72209351]
[1767581464785,3.08533709,136.62,136.59,0.72209351]
[1767581465963,3.08533709,136.61,136.58,0.72209351]
[1767581468886,3.08533709,136.62,136.58,0.72209351]
[1767581470400,3.08533709,136.62,136.57,7.32213793]
[1767581470690,3.08533709,136.61,136.57,7.32213793]
[1767581471068,3.08533709,136.61,136.58,0.72209351]
[1767581471482,3.08533709,136.61,136.57,0.72209351]
[1767581472506,3.08533709,136.61,136.58,0.72209351]
[1767581473588,18.29419358,136.66,136.59,0.72209351]
[1767581473793,16.42533709,136.63,136.59,0.72209351]
[1767581475001,13.34,136.63,136.59,0.72209351]
[1767581475294,16.42533709,136.63,136.59,0.72209351]
[1767581476088,3.08533709,136.62,136.59,0.72209351]
[1767581477901,16.42533709,136.63,136.59,0.72209351]
[1767581479522,18.29419358,136.66,136.59,0.72209351]
[1767581479523,3.08533709,136.65,136.6,0.72209351]
[1767581479704,3.08533709,136.65,136.61,0.72209351]
[1767581480005,10.40339029,136.65,136.61,0.72209351]
[1767581480499,10.40339029,136.65,136.59,11.12855867]
[1767581480709,10.40339029,136.65,136.6,0.72209351]
[1767581481013,3.08533709,136.64,136.6,0.72209351]
[1767581482804,3.08533709,136.62,136.58,0.72209351]
[1767581482999,3.08533709,136.61,136.58,0.72209351]
[1767581484508,3.08533709,136.61,136.56,7.32278851]
[1767581484690,3.08533709,136.61,136.56,8.04488202]
[1767581485309,10.40491191,136.62,136.57,3.08533709]
[1767581486116,3.08533709,136.61,136.57,0.72209351]
[1767581486709,1.97470795,136.61,136.57,0.72209351]
[1767581486908,1.97470795,136.61,136.58,0.72209351]
[1767581490307,15.31470795,136.6,136.56,0.72209351]
[1767581490607,15.31470795,136.6,136.55,7.99886571]
[1767581491413,15.31470795,136.6,136.56,0.67572024]
[1767581492513,15.31470795,136.6,136.56,7.99848531]
[1767581493616,15.31470795,136.6,136.57,0.67572024]
[1767581496926,13.34,136.6,136.57,0.67572024]
[1767581498232,9.29435705,136.62,136.58,0.66090403]
[1767581498538,13.34,136.61,136.58,0.66090403]
[1767581501012,13.34,136.61,136.58,7.98251244]
[1767581501218,13.34,136.61,136.59,0.66090403]
[1767581502609,15.31470795,136.61,136.57,0.66090403]
[1767581503323,15.31470795,136.61,136.58,0.66090403]
[1767581505420,13.34,136.61,136.58,0.66090403]
[1767581508237,11.89,136.61,136.6,0.66090403]
[1767581508420,9.29379116,136.63,136.6,0.66090403]
[1767581508737,9.94821942,136.63,136.6,0.66090403]
[1767581509527,9.94821942,136.63,136.59,0.66090403]
[1767581510138,0.65442826,136.62,136.59,0.66090403]
[1767581510438,2.62913621,136.62,136.59,0.66090403]
[1767581510636,0.65442826,136.6,136.56,7.32229835]
[1767581510940,0.65442826,136.6,136.56,7.98320238]
[1767581511931,2.62913621,136.61,136.57,0.66090403]
[1767581513322,0.65442826,136.66,136.61,0.66090403]
[1767581513524,0.65442826,136.66,136.61,0.60090407]
[1767581513734,2.62913621,136.65,136.61,0.60090407]
[1767581514244,0.65442826,136.64,136.61,0.60090407]
[1767581514451,2.62913621,136.62,136.57,20.66174847]
[1767581514828,2.62913621,136.62,136.56,20.66262497]
[1767581515022,0.65442826,136.6,136.56,7.32262497]
[1767581515231,0.57883868,136.6,136.56,7.983529]
[1767581515552,2.55354663,136.6,136.56,7.983529]
[1767581516254,9.29537416,136.6,136.55,20.66314119]
[1767581516940,9.29537416,136.6,136.55,7.32314119]
[1767581517145,0.65442826,136.59,136.55,7.32314119]
[1767581519144,0.65442826,136.59,136.55,7.98404522]
[1767581519448,0.65442826,136.59,136.55,9.95875317]
[1767581519834,0.65442826,136.62,136.58,0.66090403]
[1767581520032,0.65442826,136.62,136.58,2.63561198]
[1767581520540,2.66583545,136.64,136.59,0.70386844]
[1767581520727,0.6911275,136.63,136.59,0.70386844]
[1767581521954,2.66583545,136.64,136.6,0.70386844]
[1767581522126,0.6911275,136.64,136.6,0.70386844]
[1767581522332,0.6911275,136.64,136.61,0.70386844]
[1767581526052,0.6911275,136.64,136.61,8.02394154]
[1767581526253,1.97470795,136.65,136.61,8.02394154]
[1767581526427,1.97470795,136.66,136.62,0.70386844]
[1767581526632,2.66583545,136.67,136.62,0.70386844]
[1767581527238,9.98238961,136.68,136.63,0.70386844]
[1767581527535,1.97470795,136.67,136.63,0.70386844]
[1767581528558,9.98238961,136.68,136.63,0.70386844]
[1767581529047,0.6911275,136.67,136.63,0.70386844]
[1767581529357,0.6911275,136.64,136.6,8.02415532]
[1767581529938,0.6911275,136.64,136.6,0.70386844]
[1767581530445,9.29397618,136.63,136.58,8.02543598]
[1767581530643,0.6911275,136.61,136.58,7.32138073]
[1767581530964,0.6911275,136.63,136.59,0.70386844]
[1767581531449,0.6911275,136.63,136.58,1.97470795]
[1767581531648,0.6911275,136.63,136.58,2.67857639]
[1767581531849,0.6911275,136.63,136.59,7.3211379]
[1767581532248,0.6911275,136.63,136.58,10.00009001]
[1767581533470,0.6911275,136.63,136.59,2.67857639]
[1767581533843,0.6911275,136.63,136.6,1.97470795]
[1767581534259,0.6911275,136.63,136.6,9.29520662]
[1767581535364,0.6911275,136.63,136.58,1.97470795]
[1767581535660,0.6911275,136.62,136.58,7.32162334]
[1767581536366,9.98514608,136.63,136.59,0.70386844]
[1767581537665,2.66583545,136.62,136.57,0.70386844]
[1767581537870,1.97470795,136.61,136.57,0.70386844]
[1767581538973,2.66583545,136.62,136.58,0.70386844]
[1767581540670,0.6911275,136.62,136.58,0.70386844]
[1767581540972,0.6911275,136.61,136.57,10.00064437]
[1767581542473,0.6911275,136.61,136.57,8.02593642]
[1767581544755,2.66583545,136.62,136.58,0.70386844]
[1767581546381,0.6911275,136.61,136.57,7.32206798]
[1767581547865,0.6911275,136.61,136.57,8.02593642]
[1767581548071,2.66583545,136.62,136.58,0.70386844]
[1767581548276,7.31922784,136.63,136.58,0.70386844]
[1767581548478,1.97470795,136.63,136.59,0.70386844]
[1767581548662,3.77543839,136.63,136.59,0.70386844]
[1767581550377,0.6911275,136.63,136.59,0.70386844]
[1767581550767,3.77543839,136.63,136.59,0.70386844]
[1767581551074,0.67632303,136.62,136.58,10.40594001]
[1767581551273,0.67632303,136.62,136.58,7.32162912]
[1767581551475,0.67632303,136.62,136.58,10.40594001]
[1767581551657,3.08431089,136.63,136.59,0.66985054]
[1767581551858,0.67632303,136.63,136.59,0.66985054]
[1767581552059,3.76063392,136.63,136.59,0.66985054]
[1767581558476,0.67632303,136.63,136.59,0.66985054]
[1767581558678,3.76063392,136.63,136.59,0.66985054]
[1767581560599,0.67632303,136.63,136.6,0.72394619]
[1767581560887,7.31858563,136.64,136.6,0.72394619]
[1767581561185,0.6598181,136.63,136.59,11.12929506]
[1767581561483,7.31858563,136.64,136.6,0.72394619]
[1767581562071,7.97840373,136.64,136.6,0.72394619]
[1767581564086,0.6598181,136.64,136.6,0.72394619]
[1767581565479,7.9767128,136.67,136.63,0.72394619]
[1767581565789,0.6598181,136.67,136.63,0.72394619]
[1767581566002,0.6598181,136.67,136.64,0.72394619]
[1767581567485,23.74082101,136.68,136.64,0.72394619]
[1767581567486,13.9998181,136.68,136.64,0.72394619]
[1767581568089,13.9998181,136.68,136.65,0.72394619]
[1767581568989,13.34,136.68,136.65,0.72394619]
[1767581569194,0.6598181,136.69,136.66,0.72394619]
[1767581571081,0.6598181,136.69,136.65,7.31780919]
[1767581571283,0.6598181,136.69,136.65,8.04175538]
[1767581571584,0.6598181,136.69,136.64,0.72394619]
[1767581571790,0.6598181,136.67,136.64,0.72394619]
[1767581576501,0.6598181,136.67,136.63,10.4033477]
[1767581578108,0.6598181,136.67,136.64,3.08431089]
[1767581579205,0.6598181,136.68,136.65,0.72394619]
[1767581579699,0.6598181,136.68,136.64,11.126754]
[1767581579896,0.6598181,136.68,136.64,0.72394619]
[1767581580098,0.6598181,136.68,136.64,3.80825708]
[1767581580420,0.6598181,136.68,136.63,3.77342714]
[1767581580626,0.72301095,136.66,136.61,73.49305218]
[1767581580906,0.72301095,136.66,136.62,0.68911625]
[1767581581098,0.72301095,136.66,136.61,72.80393593]
[1767581581603,0.72301095,136.66,136.61,73.49305218]
[1767581582306,0.72301095,136.64,136.6,8.0095544]
[1767581584651,0.72301095,136.64,136.61,0.68911625]
[1767581586701,0.72301095,136.65,136.61,8.00918629]
[1767581586902,0.72301095,136.65,136.62,0.68911625]
[1767581587301,3.80732184,136.67,136.62,0.68911625]
[1767581587618,0.72301095,136.67,136.63,0.68911625]
[1767581587916,3.80732184,136.67,136.63,0.68911625]
[1767581588143,0.72301095,136.66,136.63,0.68911625]
[1767581591198,0.72301095,136.66,136.62,7.31918895]
[1767581591394,0.72301095,136.7,136.66,0.68911625]
[1767581591703,3.80732185,136.71,136.65,3.08431089]
[1767581591902,0.72301095,136.69,136.63,23.74300754]
[1767581592102,3.80732184,136.69,136.63,23.74300754]
[1767581593517,3.80732184,136.69,136.64,0.68911625]
[1767581593917,3.80732184,136.69,136.65,0.68911625]
[1767581597008,3.77732185,136.69,136.65,0.68911625]
[1767581599820,0.69301096,136.69,136.65,8.00699086]
[1767581600024,0.69301096,136.69,136.66,0.68911625]
[1767581600911,3.77732185,136.69,136.66,0.68911625]
[1767581601113,0.72301095,136.68,136.64,8.00743593]
[1767581601423,0.72301095,136.68,136.64,7.31831968]
[1767581601931,0.72301095,136.67,136.63,11.09233608]
[1767581602730,0.72301095,136.67,136.63,8.00802519]
[1767581603334,0.72301095,136.67,136.64,0.68911625]
[1767581605529,0.72301095,136.67,136.63,0.68911625]
[1767581605836,0.72301095,136.66,136.63,0.68911625]
[1767581606037,0.69301096,136.66,136.63,0.68911625]
[1767581606540,3.08431089,136.66,136.62,8.00848283]
[1767581606914,10.40127387,136.67,136.61,10.40441922]
[1767581607239,10.40127387,136.67,136.61,11.09353547]
[1767581607952,0.72301095,136.66,136.61,11.09353547]
[1767581608438,0.72301095,136.66,136.62,0.68911625]
[1767581608847,0.72301095,136.67,136.63,0.68911625]
[1767581609846,0.72301095,136.68,136.65,0.68911625]
[1767581610014,0.72301096,136.71,136.67,0.68911625]
[1767581611228,0.72301096,136.71,136.66,1.97278561]
[1767581611431,0.6860358,136.7,136.66,1.97278561]
[1767581611827,0.6860358,136.7,136.66,9.29021572]
[1767581612043,0.6860358,136.7,136.66,9.94971141]
[1767581612846,0.6860358,136.7,136.67,9.94897695]
[1767581613017,1e-08,136.71,136.67,9.94897695]
[1767581613212,1e-08,136.71,136.68,0.65949569]
[1767581613438,0.68603581,136.71,136.68,0.65949569]
[1767581615620,1e-08,136.71,136.68,0.65949569]
[1767581616530,1e-08,136.71,136.69,0.72345269]
[1767581617843,0.69380519,136.7,136.66,0.72345269]
[1767581618147,2.6665908,136.7,136.66,0.72345269]
[1767581620440,1.97278561,136.69,136.66,0.72345269]
[1767581620745,1.94278562,136.69,136.66,0.72345269]
[1767581620933,2.6665908,136.7,136.66,0.72345269]
[1767581621323,0.69380519,136.69,136.66,7.31740349]
[1767581621824,2.6665908,136.7,136.67,0.72345269]
[1767581622340,0.69380519,136.7,136.67,0.72345269]
[1767581622550,2.6665908,136.7,136.67,0.72345269]
[1767581623948,0.69380519,136.7,136.67,0.72345269]
[1767581624248,2.6665908,136.7,136.67,0.72345269]
[1767581624626,1e-08,136.71,136.68,0.72345269]
[1767581625946,1e-08,136.71,136.68,8.03961223]
[1767581628942,1e-08,136.71,136.69,0.72345269]
[1767581630262,1e-08,136.71,136.69,8.03917716]
[1767581630655,1e-08,136.71,136.69,0.72345269]
[1767581631041,2.66659081,136.71,136.67,0.72345269]
[1767581631443,0.69380519,136.7,136.65,65.0962383]
[1767581632054,0.69380519,136.7,136.66,7.31743011]
[1767581632452,0.69380519,136.7,136.66,8.0408828]
[1767581632840,0.69380519,136.69,136.65,7.31778373]
[1767581633241,1.97278561,136.7,136.66,0.72345269]
[1767581633557,2.6665908,136.7,136.66,0.72345269]
[1767581634459,2.6665908,136.7,136.66,8.04078243]
[1767581635064,0.69380519,136.7,136.66,8.04078243]
[1767581635668,0.69380519,136.69,136.66,0.72345269]
[1767581636865,0.69380519,136.67,136.64,7.31833439]
[1767581637850,0.6638052,136.67,136.65,7.31789302]
[1767581638976,1.97278561,136.69,136.65,0.72345269]
[1767581639976,2.6665908,136.69,136.65,0.72345269]
[1767581640767,0.69380519,136.69,136.65,0.72345269]
[1767581640965,2.6665908,136.69,136.65,0.72345269]
[1767581641680,0.67409762,136.68,136.64,7.98844416]
[1767581642191,0.67409762,136.68,136.65,0.66994299]
[1767581642954,2.64688323,136.68,136.65,0.66994299]
[1767581649985,9.96329664,136.68,136.65,0.66994299]
[1767581650681,9.96329664,136.68,136.63,0.66994299]
[1767581650682,2.64688323,136.66,136.63,0.66994299]
[1767581650892,0.67409762,136.64,136.61,7.31959286]
[1767581651190,0.64409761,136.64,136.61,7.31959286]
[1767581651395,0.64409761,136.64,136.61,7.98953585]
[1767581651568,1.97278561,136.66,136.62,0.66994299]
[1767581652069,1.97278561,136.66,136.61,7.98953585]
[1767581652984,0.67409762,136.65,136.61,7.98953585]
[1767581653184,1.97278561,136.65,136.6,0.66994299]
[1767581653368,0.67409762,136.65,136.61,0.66994299]
[1767581653769,0.67409762,136.66,136.62,0.66994299]
[1767581654176,2.64688323,136.66,136.62,0.66994299]
[1767581655191,0.67409762,136.64,136.6,0.66994299]
[1767581656080,2.64688323,136.64,136.6,0.66994299]
[1767581657990,2.6168832,136.64,136.6,0.66994299]
[1767581659200,8.45013837,136.72,136.61,0.66994299]
[1767581659398,1.97278561,136.68,136.63,0.66994299]
[1767581659587,1.97278561,136.67,136.63,0.66994299]
[1767581659982,2.64688323,136.67,136.63,0.66994299]
[1767581660297,0.67409762,136.67,136.63,0.66994299]